Cogmind - Beta 17.1 @@@ ROGUE MODE // 2026.09.14 @ 18:30:04 Player: 7H-NLC Result: Destroyed by D-53 Grenadier with Mini Grenade Launcher Performance ------------- Evolutions (0) 0 Regions Visited (2) 400 Robots Destroyed (14) 70 Value Destroyed (216) 216 Prototype IDs (0) 0 Alien Tech Used (0) 0 Bonus (0) 0 TOTAL SCORE: 686 Bonus ------- None Cogmind --------- Core Integrity 0/250 Matter 150/300 Energy 35/100 System Corruption 0% Temperature Cool (0) Movement Treading (160) Location -10/Mines Parts ------- > --- POWER (1) -------- (None) > --- PROPULSION (2) --- Light Treads Light Treads > --- UTILITY (2) ------ Large Storage Unit > --- WEAPON (2) ------- Light Assault Rifle Light Assault Rifle > --- INVENTORY (15) --- Ion Engine Light Ion Engine Light Treads Light Treads Light Treads Medium Matter Pod (100) Improved Terrain Scanner Seismic Detector Mining Laser Peak State ------------ > --- POWER ------------ Light Nuclear Core > --- PROPULSION ------- Light Treads Light Treads > --- UTILITY ---------- Large Storage Unit Seismic Detector > --- WEAPON ----------- Assault Rifle Light Assault Rifle > --- INVENTORY -------- Ion Engine Light Ion Engine Light Treads Light Treads Light Treads Light Treads Light Treads Medium Matter Pod Improved Terrain Scanner Seismic Detector Light Assault Rifle Grenade Launcher Grenade Launcher Grenade Launcher Mining Laser [Rating: 10] Favorites ----------- Power Light Ion Engine Engine Light Ion Engine Power Core Light Nuclear Core Propulsion Wheel Treads Light Treads Wheel Wheel Utility Seismic Detector Device Seismic Detector Storage Large Storage Unit Weapon Assault Rifle Ballistic Gun Assault Rifle Launcher Grenade Launcher Special Weapon Mining Laser Build | -11 -10 -10 ------- Run | Yrd Mat Min Slots Evolved . | . . . Power . | . . . Propulsion . | . . . Utility . | . . . Weapon . | . . . Parts Attached 18 | 7 7 4 Power 2 | 1 1 . Engine 1 | 1 . . Core 1 | . 1 . Reactor . | . . . Propulsion 6 | 2 2 2 Treads 4 | . 2 2 Leg . | . . . Wheel 2 | 2 . . Hover . | . . . Flight . | . . . Utility 3 | 2 1 . Device 1 | 1 . . Storage 2 | 1 1 . Processor . | . . . Hackware . | . . . Protection . | . . . Artifact . | . . . Weapon 7 | 2 3 2 Energy Gun . | . . . Energy Cannon . | . . . Ballistic Gun 3 | 2 1 . Ballistic Cannon . | . . . Launcher 3 | . 1 2 Special Weapon 1 | . 1 . Impact Weapon . | . . . Slashing Weapon . | . . . Piercing Weapon . | . . . Special Melee Weapon . | . . . Unidentified Prototypes . | . . . Parts Lost 8 | . . 8 Power 1 | . . 1 Propulsion 2 | . . 2 Utility 1 | . . 1 Weapon 4 | . . 4 Highest Loss Streak 8 | . . 8 To Critical Strikes . | . . . Average Backups 11 | 4 12 14 Power 1 | . 1 2 Propulsion 3 | 1 3 5 Utility 2 | . 3 3 Weapon 3 | 1 4 4 Tool/Special . | . . . Unused Backups 8 | . . 8 Power 2 | . . 2 Propulsion 3 | . . 3 Utility 3 | . . 3 Weapon . | . . . Tool/Special . | . . . Average Slot Usage (%) 98 | . 100 95 Engine 9 | . 12 . Core 4 | . 1 13 Treads 14 | . 9 26 Wheel 13 | . 18 . Device 13 | . 14 12 Storage 14 | . 14 14 Ballistic Gun 23 | . 23 24 Launcher 1 | . 1 3 Special Weapon 2 | . 3 . Peak Build Rating 10 | 8 10 10 Average Rating 8 | 6 8 9 On Entrance 6 | . 8 10 Avg Prop Armor Cover (%) 10 | . 10 . Naked Turns . | . . . Heaviest Build 29 | 12 29 29 Greatest Support 40 | 20 40 40 Greatest Overweight (x) 2 | . 2 . Average Overweight (x) . | . . . Largest Inventory Capacity 15 | 8 15 15 Average Capacity 13 | 7 14 15 Most Carried 15 | 8 15 15 Average Carried 11 | 4 12 14 Final Capacity 15 | 8 15 15 Final Carried 15 | 8 15 9 Class Distribution -------------------- 100% | Mutant Dominant Class ---------------- Mutant | -10/Materials Mutant | -10/Mines Resources | -11 -10 -10 ----------- Run | Yrd Mat Min Matter Collected 607 | 429 178 . Remotely . | . . . Salvage Created 326 | 193 64 69 Parts 27 | 12 6 9 Haulers Intercepted . | . . . Recyclers Shooed 1 | 1 . . Parts Field Recycled . | . . . Retrieved Matter . | . . . Parts Self-Destructed . | . . . Prevented . | . . . Parts Restored . | . . . Kills | -11 -10 -10 ------- Run | Yrd Mat Min Combat Hostiles Destroyed 6 | . 4 2 Guns 1 | . 1 . AOE 5 | . 3 2 Classes Destroyed 6 | 3 3 . Worker 1 | 1 . . Tunneler 5 | 4 . 1 Recycler 1 | 1 . . Watcher 1 | . 1 . Swarmer 3 | . 3 . Grunt 3 | . 1 2 Best Kill Streak 3 | 3 3 2 Combat Bots Only 3 | . 3 2 Max Kills in Single Turn 2 | 1 2 1 Gunslinging . | . . . Exploded 2 | . 2 1 Melee . | . . . Uniques/NPCs Destroyed . | . . . Combat | -11 -10 -10 -------- Run | Yrd Mat Min Hostile Shots Fired 53 | . 30 23 Missed 10 | . 9 1 Hits 43 | . 21 22 Projectile 43 | . 21 22 AOE 20 | . . 20 Damage Taken 1008 | . 250 758 Core 254 | . 45 209 Absorbed by Shields . | . . . Core Remaining (%) 100 | 100 . . Volleys Fired 47 | 21 19 7 Largest 2 | 2 2 2 Hottest 100 | 40 100 60 Shots Fired 74 | 42 22 10 Gun 59 | 42 17 . Cannon . | . . . Launcher 13 | . 3 10 Special 2 | . 2 . Kinetic 59 | 42 17 . Thermal 2 | . 2 . Explosive 13 | . 3 10 Electromagnetic . | . . . Robot Hit Streak 20 | 5 12 20 Robot Miss Streak 4 | 4 1 . Penetration Max . | . . . Secondary Targets . | . . . Shots Hit Robots 49 | 25 16 8 Core Hits 33 | 10 10 13 Critical Kills . | . . . Critical Parts Destroyed . | . . . Critical Strikes . | . . . Melee Attacks . | . . . Impact . | . . . Slashing . | . . . Piercing . | . . . Sneak Attacks . | . . . Combat Hostiles . | . . . Follow-up Attacks . | . . . Damage Inflicted 770 | 272 315 183 Guns 405 | 272 133 . Cannons . | . . . Explosions 363 | . 182 181 Melee . | . . . Ramming 2 | . . 2 Kinetic 405 | 272 133 . Thermal . | . . . Explosive 363 | . 182 181 Electromagnetic . | . . . Impact . | . . . Slashing . | . . . Piercing . | . . . Highest Corruption . | . . . Average Corruption . | . . . Corruption Purged . | . . . Corruption Blocked . | . . . Overload Shots . | . . . Overflow Damage . | . . . Projectiles . | . . . Explosions . | . . . Melee . | . . . Knockbacks . | . . . Impact . | . . . Kinetic . | . . . Secondary . | . . . Self-Inflicted Damage . | . . . Shots . | . . . Rammed . | . . . Targets Rammed 1 | . . 1 Kicked . | . . . Crushed 1 | . . 1 Highest Temperature 20 | . 20 6 Average Temperature 8 | . 10 3 Received Heat Transfer 129 | . 114 15 Siege Activations . | . . . Martial Activations . | . . . Shielding Activations . | . . . Robots Disrupted . | . . . Combat Hostiles . | . . . Robots Corrupted . | . . . Combat Hostiles . | . . . Parts Fried . | . . . Impact Corruptions . | . . . Robots Melted . | . . . Combat Hostiles . | . . . Parts Melted . | . . . Heat Transferred . | . . . Parts Sabotaged . | . . . Parts Stolen . | . . . Parts Stripped . | . . . Power Chain Reactions . | . . . Alert | -11 -10 -10 ------- Run | Yrd Mat Min Maximum Alert Level . | . . . Low Security (%) 100 | 100 100 100 Level 1 . | . . . Level 2 . | . . . Level 3 . | . . . Level 4 . | . . . Level 5 . | . . . High Security . | . . . Max Security . | . . . Peak Influence 89 | 10 89 71 Initial 5 | . . 5 Average 15 | 1 19 17 Influence Increases 255 | 30 133 92 Destroy 0b10 Robot/C 120 | . 80 40 Destroy 0b10 Robot/NC 40 | 30 5 5 Destroy Leader 32 | . 22 10 Allied During Kill 8 | . . 8 Successful Hack 5 | . 5 . Destroy Structure 50 | . 21 29 Influence Decreases 255 | 30 119 106 Entered New Map 9 | . . 9 Time Decay 188 | 30 119 39 Lost Part 7 | . . 7 Lost Ally 51 | . . 51 Squads Dispatched 1 | . 1 . Investigation 1 | . 1 . Extermination . | . . . Reinforcement . | . . . Assault . | . . . Garrison . | . . . Intercept . | . . . Searches Triggered . | . . . Construction Impeded . | . . . Haulers Reinforced . | . . . Active Scanning Responses . | . . . Cargo Convoy Interrupts . | . . . Stealth | -11 -10 -10 --------- Run | Yrd Mat Min Distress Signals 1 | . 1 . Communications Jammed . | . . . Distress Signals . | . . . Times Spotted 16 | . 12 4 Peak Tracking Total 4 | . 4 2 Tactical Retreats . | . . . Traps | -11 -10 -10 ------- Run | Yrd Mat Min Traps Triggered 1 | . 1 . Indirectly . | . . . Trap Hack Attempts . | . . . Triggered . | . . . Disarmed . | . . . Reprogrammed . | . . . Reused . | . . . Traps Extracted . | . . . Installed . | . . . Triggered . | . . . Machines | -11 -10 -10 ---------- Run | Yrd Mat Min Machines Disabled . | . . . Max in Single Turn . | . . . Machines Repaired . | . . . Machines Dismantled . | . . . Machines Sabotaged . | . . . Overloaded Fab Kills . | . . . Hacking | -11 -10 -10 --------- Run | Yrd Mat Min Machines Accessed 5 | . 5 . Terminals 5 | . 5 . Fabricators . | . . . Repair Stations . | . . . Recycling Units . | . . . Scanalyzers . | . . . Garrison Access . | . . . Total Hacks 11 | . 11 . Successful 3 | . 3 . Failed 8 | . 8 . Catastrophic . | . . . Database Lockouts . | . . . Manual 2 | . 2 . Terminals 11 | . 11 . Fabricators . | . . . Repair Stations . | . . . Recycling Units . | . . . Scanalyzers . | . . . Garrison Access . | . . . Terminal Hacks 3 | . 3 . Transport Status 1 | . 1 . Hauler Manifests 1 | . 1 . Registered Components 1 | . 1 . Fabricator Hacks . | . . . Repair Station Hacks . | . . . Recycling Unit Hacks . | . . . Scanalyzer . | . . . Garrison Access Hacks . | . . . Unauthorized Hacks . | . . . Terminals . | . . . Fabricators . | . . . Repair Stations . | . . . Recycling Units . | . . . Scanalyzers . | . . . Garrison Access . | . . . Data Cores Recovered . | . . . Used . | . . . Hacking Detections 4 | . 4 . Full Trace Events . | . . . Feedback Events . | . . . Feedback Blocked . | . . . Robot Schematics Acquired . | . . . Robots Built . | . . . Authchips . | . . . Time . | . . . Total Robot Build Rating . | . . . Part Schematics Acquired . | . . . Parts Built . | . . . Authchips . | . . . Time . | . . . Total Part Build Rating . | . . . Part Studies Acquired . | . . . Parts Repaired . | . . . Time . | . . . Parts Recycled . | . . . Recycled Matter . | . . . Retrieved Matter . | . . . Retrieved Components . | . . . Parts Scanalyzed . | . . . Part Schematics Acquired . | . . . Parts Damaged . | . . . Bothacking | -11 -10 -10 ------------ Run | Yrd Mat Min Used RIF Installer . | . . . Robots Hacked . | . . . Non-combat . | . . . Combat . | . . . Robot Hacks Applied . | . . . Relay Couplers Released . | . . . Fabnet Peak Effective % . | . . . Robots Rewired . | . . . Allies Hacked . | . . . Hacks Repelled . | . . . Allies | -11 -10 -10 -------- Run | Yrd Mat Min Total Allies 3 | . . 3 Largest Group 3 | . . 3 Highest-Rated Group 40 | . . 40 Highest-Rated Ally 16 | . . 16 Total Orders . | . . . Ally Attacks 5 | . . 5 Total Damage 59 | . . 59 Kills . | . . . Allies Corrupted . | . . . Allies Melted . | . . . Intel | -11 -10 -10 ------- Run | Yrd Mat Min Active Infowar (turns) 689 | 58 478 153 Seismic 689 | 58 478 153 Robot Analysis Total . | . . . Derelict Logs Recovered . | . . . Drone Launches . | . . . Drone Recoveries . | . . . Exploration | -11 -10 -10 ------------- Run | Yrd Mat Min Turns Passed 794 | 145 478 171 Spaces Moved 502 | 80 333 89 Core 1 | 1 . . Treads 154 | . 65 89 Legs . | . . . Wheels 347 | 79 268 . Hover . | . . . Flight . | . . . Fastest Speed 50 | 50 80 160 Average Speed 117 | 79 115 160 Slowest Speed 240 | 80 240 160 Overloaded Moves . | . . . Propulsion Burnouts . | . . . Robots Hopped . | . . . Potential Cave-ins . | . . . Cave-ins Triggered . | . . . Exploration Rate (%) 31 | 4 64 26 Regions Visited 2 Branch Regions 1 Pre-discovered Areas . | . . . Known Exits Taken . | . . . Unknown Exits Taken 2 | 1 1 . Scrap Searched . | . . . Spaces Dug 2 | . 2 . Terrain Destroyed 54 | . 24 30 Melee . | . . . Projectile 2 | . 2 . AOE 52 | . 22 30 Terrain Rammed . | . . . Walls Destroyed . | . . . Machines Disabled . | . . . Actions | -11 -10 -10 --------- Run | Yrd Mat Min Total 625 | 120 399 106 Wait 32 | 3 29 . Move 500 | 79 332 89 Hop . | . . . Pick Up 16 | 9 7 . Fast Attach 7 | 7 . . Attach 6 | . . 6 Detach . | . . . Swap 13 | . 10 3 Drop 3 | 1 2 . Fire 47 | 21 19 7 Melee . | . . . Ram . | . . . Kick . | . . . Crush 1 | . . 1 Escape Stasis . | . . . Rewire . | . . . Trap . | . . . Miscellaneous . | . . . Route ------- -11/Scrapyard -10/Materials (discovered 2 exits: [*Mat] / [*Min]) -10/Mines History --------- Turn | Location | Event 16 | -11/Scrapyard | Discovered new exit (range 15) 146 | -11/Scrapyard | Entered Materials 302 | -10/Materials | Build established: Mutant 317 | -10/Materials | Discovered new exit (range 16) 600 | -10/Materials | Discovered new exit (range 16) 624 | -10/Materials | Entered Mines 632 | -10/Mines | Assisted by bots powering up and referring to "LRC-V3" 719 | -10/Mines | Assembled infested the area 788 | -10/Mines | Core integrity fell below 50% 792 | -10/Mines | Lost 3 allies 795 | -10/Mines | Core integrity fell below 20% 795 | -10/Mines | Destroyed by D-53 Grenadier with Mini Grenade Launcher Last Messages --------------- 00719_ ALERT: Infestation in the mines, dispatching Demolisher response squad. 00744_ A derelict is hurriedly installing traps. 00746_ K7-S1R(g): "Hehe, this'll put a wrench in their mining defense operations..." 00746_ K7-S1R(g) slips into the shadows. 00756_ The unstable cave ceiling collapses. 00757_ Mercenary 1a destroyed. 00761_ Trooper 1b destroyed. 00776_ The unstable cave ceiling collapses. 00777_ Seismic Detector destroyed. 00779_ Assault Rifle destroyed. 00783_ The unstable cave ceiling collapses. 00784_ Grenade Launcher destroyed. 00787_ Lgt. Nuclear Core destroyed. 00788_ Lgt. Treads destroyed. 00790_ Grenade Launcher destroyed. 00791_ The unstable cave ceiling collapses. 00792_ Grenade Launcher destroyed. 00793_ The unstable cave ceiling collapses. Map ----- +----------------------------------------------------+ | ????????????????????????????????? | | ????????????????????????????????? | | ????????????????????????????????? | | ????????????????????????????????? | | ????????????????????????????????? | | ????????????????????????????????? | | ????????????????????????????????? | | ????????????????????????????????? | | ????????????????????????????? ?? | | ????????????????????????????? #?? | | ???????????????????????????? #?? | | ????????????????????????#### ??? | | ????????????????????##### ???? | | ???????????????????## # * ????? | | ???????????????#??## =%[##???? | | ?????????????? ### =! #???? | | ?????????????# ##### | | ???????????## % # # | | ??????????? =# | | ??????##### | | ?????## | | ????## d #% " | | ???## # | | ??## ^ ## | | ??# d # ### | | ??# @ #####?### #?# | | ??# #????## #?# | | ??## ##????# #?# | | ???## #####?????## ##?? | | ????## # ##??????????## ###??? | | ?????#######????????????####????? | | ????????????????????????????????? | | ????????????????????????????????? | | | | | | | | | | | | | | | | | | | | | | | | | | | | | | | | | | | +----------------------------------------------------+ Best States ------------- Heat Dissipation 25 Energy Generation 14 Energy Capacity 160 Matter Stores 300 Matter Capacity 300 Sight Range 16 Terrain Scan Density 10 Evasion (%) 44 Recoil Reduction 2 Item Schematics ----------------- None Robot Schematics ------------------ None Fabricated ------------ Nothing Repaired ---------- Nothing Studied --------- None Alien Tech Used ----------------- None Achievements -------------- None Challenges ------------ None Game ------ Seed SpacefoldCannonShredder Manual? 0 Play Time 00:08:19 Cumulative 489.1 hours Start 2026.09.14 @ 18:23:16 End 2026.09.14 @ 18:30:04 Sessions 1 Manual Loads 0 Difficulty Rogue Special Mode None Game No. 361 Rogue 361 Adventurer 0 Explorer 0 Win Type - Total 10 Types 4/0/4/2/0/0/0/0/0/0 Lore% 63 Gallery% 72 Achievement% 59 Wizard Run 0 Options --------- Layout 2 ASCII 0 Keyboard 1 Movement Vi Keybinds 0 Fullscreen 2 Font 32/Smallcaps Map View 77x44 Zoom Use 0% Tactical HUD 1 Map Filters NONE Filters NONE Steam 1 RUN: 6d165d4d-280e-4673-811c-4cb8cfaad786